Cogmind - Beta 13 @@@ ROGUE MODE // 2024.04.24 @ 18:45:08 Player: Fazzonamite Result: Destroyed by G-47 Trooper with Particle Gun Performance ------------- Evolutions (1) 500 Regions Visited (3) 600 Robots Destroyed (37) 185 Value Destroyed (929) 929 Prototype IDs (5) 100 Alien Tech Used (0) 0 Bonus (0) 0 TOTAL SCORE: 2314 Bonus ------- None Cogmind --------- Core Integrity 0/400 Matter 289/300 Energy 98/100 System Corruption 0% Temperature Cool (62) Movement Walking (120) Location -9/Materials Parts ------- > --- POWER (1) -------- (None) > --- PROPULSION (3) --- Aluminum Leg > --- UTILITY (3) ------ Medium Storage Unit Signal Interpreter > --- WEAPON (2) ------- (None) > --- INVENTORY (10) --- Improved Heat Sink Large Storage Unit Medium Matter Pod (100) Visual Processing Unit Peak State ------------ > --- POWER ------------ Improved Ion Engine > --- PROPULSION ------- Aluminum Leg Aluminum Leg Aluminum Leg > --- UTILITY ---------- Medium Storage Unit Signal Interpreter Seismic Detector > --- WEAPON ----------- Particle Gun Light Assault Rifle > --- INVENTORY -------- Ion Engine Ion Engine Aluminum Leg Improved Heat Sink Large Storage Unit Medium Matter Pod Visual Processing Unit EM Pulse Gun Light Assault Rifle [Rating: 12] Favorites ----------- Power Ion Engine Engine Ion Engine Propulsion Aluminum Leg Leg Aluminum Leg Utility Medium Storage Unit Device Seismic Detector Storage Medium Storage Unit Processor Signal Interpreter Protection Light Armor Plating Weapon Particle Gun Energy Gun Particle Gun Ballistic Gun Light Assault Rifle Build | -11 -10 -10 -9 ------- Run | Yrd Mat Min Mat Slots Evolved 2 | . . . 2 Power . | . . . . Propulsion 1 | . . . 1 Utility 1 | . . . 1 Weapon . | . . . . Parts Attached 25 | 6 7 2 10 Power 4 | 1 . . 3 Engine 4 | 1 . . 3 Core . | . . . . Reactor . | . . . . Propulsion 8 | 2 3 1 2 Treads . | . . . . Leg 8 | 2 3 1 2 Wheel . | . . . . Hover . | . . . . Flight . | . . . . Utility 6 | 1 2 . 3 Device 1 | . . . 1 Storage 2 | 1 1 . . Processor 1 | . 1 . . Hackware . | . . . . Protection 2 | . . . 2 Artifact . | . . . . Weapon 7 | 2 2 1 2 Energy Gun 3 | . 1 1 1 Energy Cannon . | . . . . Ballistic Gun 4 | 2 1 . 1 Ballistic Cannon . | . . . . Launcher . | . . . . Special Weapon . | . . . . Impact Weapon . | . . . . Slashing Weapon . | . . . . Piercing Weapon . | . . . . Special Melee Weapon . | . . . . Unidentified Prototypes . | . . . . Parts Lost 13 | . . 1 12 Power 3 | . . 1 2 Propulsion 3 | . . . 3 Utility 3 | . . . 3 Weapon 4 | . . . 4 Highest Loss Streak 10 | . . 1 10 To Critical Strikes . | . . . . Average Slot Usage (%) 95 | . 94 99 91 Engine 12 | . 14 13 9 Leg 28 | . 28 28 30 Device 1 | . . . 4 Storage 13 | . 14 14 11 Processor 10 | . 8 14 11 Protection 1 | . . . 3 Energy Gun 12 | . 11 14 10 Ballistic Gun 13 | . 16 14 10 Naked Turns . | . . . . Heaviest Build 24 | 13 20 19 24 Greatest Support 30 | 20 20 20 30 Greatest Overweight (x) 3 | 1 . . 3 Average Overweight (x) . | . . . . Largest Inventory Capacity 10 | 8 10 10 10 Average Capacity 9 | 7 9 10 10 Most Carried 10 | 4 10 10 9 Average Carried 8 | 1 7 10 7 Final Capacity 10 | 8 10 10 10 Final Carried 10 | 2 10 10 4 Class Distribution -------------------- 60% | Mutant 39% | Scavenger-Mutant Dominant Class ---------------- Mutant | -10/Materials Scavenger-Mutant | -10/Mines Scavenger-Mutant | -9/Materials Resources | -11 -10 -10 -9 ----------- Run | Yrd Mat Min Mat Matter Collected 650 | 260 168 128 94 Remotely . | . . . . Salvage Created 1266 | . 380 162 724 Parts 70 | . 26 11 33 Haulers Intercepted 1 | . 1 . . Recyclers Shooed 2 | . . . 2 Parts Field Recycled . | . . . . Retrieved Matter . | . . . . Parts Self-Destructed . | . . . . Prevented . | . . . . Kills | -11 -10 -10 -9 ------- Run | Yrd Mat Min Mat Combat Hostiles Destroyed 28 | . 10 4 14 Guns 25 | . 10 4 11 AOE 2 | . . . 2 Classes Destroyed 7 | . 5 . 2 Hauler 1 | . 1 . . Recycler 3 | . 1 . 2 Operator 1 | . . . 1 Watcher 4 | . 3 . 1 Swarmer 9 | . 6 . 3 Grunt 15 | . 4 4 7 Sentry 4 | . . . 4 Best Kill Streak 6 | . 4 3 6 Combat Bots Only 5 | . 3 3 5 Max Kills in Single Turn 2 | . 1 1 2 Gunslinging . | . . . . Exploded 2 | . . . 2 Melee . | . . . . Uniques/NPCs Destroyed . | . . . . Combat | -11 -10 -10 -9 -------- Run | Yrd Mat Min Mat Hostile Shots Fired 223 | . 46 26 151 Missed 59 | . 16 5 38 Damage Taken 1951 | . 289 251 1411 Core 556 | . 91 53 412 Absorbed by Shields . | . . . . Core Remaining (%) 71 | 100 . 42 . Volleys Fired 105 | . 35 16 54 Largest 2 | . 2 2 2 Hottest 85 | . 85 85 85 Shots Fired 201 | . 70 32 99 Gun 201 | . 70 32 99 Cannon . | . . . . Launcher . | . . . . Special . | . . . . Kinetic 102 | . 41 16 45 Thermal 92 | . 29 16 47 Explosive . | . . . . Electromagnetic 7 | . . . 7 Robot Hit Streak 9 | . 9 4 9 Robot Miss Streak 5 | . 5 4 5 Penetration Max . | . . . . Secondary Targets 2 | . . 2 . Max Gunslinging Chain 1 | . . 1 . Shots Hit Robots 127 | . 43 16 68 Core Hits 59 | . 20 8 31 Critical Kills . | . . . . Critical Parts Destroyed . | . . . . Critical Strikes 5 | . 2 . 3 Burn 4 | . 2 . 2 Corrupt 1 | . . . 1 Melee Attacks . | . . . . Impact . | . . . . Slashing . | . . . . Piercing . | . . . . Sneak Attacks . | . . . . Combat Hostiles . | . . . . Follow-up Attacks . | . . . . Damage Inflicted 1874 | . 610 180 1084 Guns 1655 | . 610 180 865 Cannons . | . . . . Explosions 219 | . . . 219 Melee . | . . . . Ramming . | . . . . Kinetic 623 | . 299 66 258 Thermal 1155 | . 311 114 730 Explosive . | . . . . Electromagnetic 96 | . . . 96 Impact . | . . . . Slashing . | . . . . Piercing . | . . . . Highest Corruption . | . . . . Average Corruption . | . . . . Corruption Purged . | . . . . Corruption Blocked . | . . . . Overload Shots . | . . . . Overflow Damage . | . . . . Projectiles . | . . . . Explosions . | . . . . Melee . | . . . . Knockbacks . | . . . . Impact . | . . . . Kinetic . | . . . . Secondary . | . . . . Self-Inflicted Damage 39 | . . . 39 Shots 1 | . . . 1 Rammed 1 | . . . 1 Targets Rammed 1 | . . . 1 Kicked . | . . . . Crushed . | . . . . Highest Temperature 396 | . 216 280 396 Average Temperature 109 | . 65 107 136 Received Heat Transfer 992 | . 69 275 648 Effects 2 | . . . 2 Energy Bleed 2 | . . . 2 Siege Activations . | . . . . Robots Corrupted . | . . . . Combat Hostiles . | . . . . Parts Fried . | . . . . Impact Corruptions . | . . . . Robots Melted 1 | . . . 1 Combat Hostiles 1 | . . . 1 Parts Melted 5 | . 2 . 3 Heat Transferred 2916 | . 888 259 1769 Parts Sabotaged . | . . . . Parts Stolen . | . . . . Parts Stripped . | . . . . Power Chain Reactions 1 | . . . 1 Alert | -11 -10 -10 -9 ------- Run | Yrd Mat Min Mat Peak Influence 357 | . 248 139 357 Initial 49 | . . 49 . Average 120 | . 115 82 178 Maximum Alert Level 1 | . 1 . 1 Low Security (%) 74 | 100 74 100 47 Level 1 25 | . 25 . 52 Level 2 . | . . . . Level 3 . | . . . . Level 4 . | . . . . Level 5 . | . . . . High Security . | . . . . Max Security . | . . . . Squads Dispatched 3 | . 1 . 2 Investigation 1 | . 1 . . Extermination . | . . . . Reinforcement 2 | . . . 2 Assault . | . . . . Garrison . | . . . . Intercept . | . . . . Searches Triggered . | . . . . Construction Impeded . | . . . . Haulers Reinforced . | . . . . Active Scanning Responses . | . . . . Cargo Convoy Interrupts . | . . . . Stealth | -11 -10 -10 -9 --------- Run | Yrd Mat Min Mat Distress Signals 7 | . 2 . 5 Communications Jammed . | . . . . Distress Signals . | . . . . Times Spotted 52 | . 16 6 30 Peak Tracking Total 10 | . 5 4 10 Tactical Retreats 2 | . . 1 1 Traps | -11 -10 -10 -9 ------- Run | Yrd Mat Min Mat Traps Triggered 1 | . 1 . . Indirectly . | . . . . Trap Hack Attempts . | . . . . Triggered . | . . . . Disarmed . | . . . . Reprogrammed . | . . . . Reused . | . . . . Traps Extracted . | . . . . Installed . | . . . . Triggered . | . . . . Machines | -11 -10 -10 -9 ---------- Run | Yrd Mat Min Mat Machines Disabled 1 | . . . 1 Max in Single Turn 1 | . . . 1 Machines Repaired . | . . . . Machines Dismantled . | . . . . Machines Sabotaged . | . . . . Overloaded Fab Kills . | . . . . Hacking | -11 -10 -10 -9 --------- Run | Yrd Mat Min Mat Machines Accessed 7 | . 7 . . Terminals 7 | . 7 . . Fabricators . | . . . . Repair Stations . | . . . . Recycling Units . | . . . . Scanalyzers . | . . . . Garrison Access . | . . . . Total Hacks 12 | . 12 . . Successful 7 | . 7 . . Failed 5 | . 5 . . Catastrophic 1 | . 1 . . Database Lockouts . | . . . . Manual . | . . . . Terminals 12 | . 12 . . Fabricators . | . . . . Repair Stations . | . . . . Recycling Units . | . . . . Scanalyzers . | . . . . Garrison Access . | . . . . Terminal Hacks 7 | . 7 . . Robot Analysis 1 | . 1 . . Prototype ID Bank 3 | . 3 . . Terminal Index 1 | . 1 . . Locate Traps 2 | . 2 . . Fabricator Hacks . | . . . . Repair Station Hacks . | . . . . Recycling Unit Hacks . | . . . . Scanalyzer . | . . . . Garrison Access Hacks . | . . . . Unauthorized Hacks . | . . . . Terminals . | . . . . Fabricators . | . . . . Repair Stations . | . . . . Recycling Units . | . . . . Scanalyzers . | . . . . Garrison Access . | . . . . Data Cores Recovered . | . . . . Used . | . . . . Hacking Detections 6 | . 6 . . Full Trace Events . | . . . . Feedback Events . | . . . . Feedback Blocked . | . . . . Robot Schematics Acquired . | . . . . Robots Built . | . . . . Authchips . | . . . . Time . | . . . . Total Robot Build Rating . | . . . . Part Schematics Acquired . | . . . . Parts Built . | . . . . Authchips . | . . . . Time . | . . . . Total Part Build Rating . | . . . . Parts Repaired . | . . . . Time . | . . . . Parts Recycled . | . . . . Recycled Matter . | . . . . Retrieved Matter . | . . . . Retrieved Components . | . . . . Parts Scanalyzed . | . . . . Part Schematics Acquired . | . . . . Parts Damaged . | . . . . Bothacking | -11 -10 -10 -9 ------------ Run | Yrd Mat Min Mat Used RIF Installer . | . . . . Robots Hacked . | . . . . Non-combat . | . . . . Combat . | . . . . Robot Hacks Applied . | . . . . Relay Couplers Released . | . . . . Fabnet Peak Effective % . | . . . . Robots Rewired . | . . . . Allies Hacked . | . . . . Hacks Repelled . | . . . . Allies | -11 -10 -10 -9 -------- Run | Yrd Mat Min Mat Total Allies . | . . . . Largest Group . | . . . . Highest-Rated Group . | . . . . Highest-Rated Ally . | . . . . Total Orders . | . . . . Ally Attacks . | . . . . Total Damage . | . . . . Kills . | . . . . Allies Corrupted . | . . . . Allies Melted . | . . . . Intel | -11 -10 -10 -9 ------- Run | Yrd Mat Min Mat Robot Analysis Total 1 | . 1 . . Derelict Logs Recovered . | . . . . Drone Launches . | . . . . Drone Recoveries . | . . . . Exploration | -11 -10 -10 -9 ------------- Run | Yrd Mat Min Mat Turns Passed 1723 | 58 737 453 475 Spaces Moved 966 | 40 473 263 190 Core 9 | 8 . . 1 Treads . | . . . . Legs 957 | 32 473 263 189 Wheels . | . . . . Hover . | . . . . Flight . | . . . . Fastest Speed 50 | 50 120 120 120 Average Speed 119 | 112 120 120 120 Slowest Speed 200 | 120 120 120 200 Overloaded Moves . | . . . . Propulsion Burnouts . | . . . . Robots Hopped . | . . . . Cave-ins Triggered . | . . . . Exploration Rate (%) 38 | 4 84 42 22 Regions Visited 3 Branch Regions 1 Pre-discovered Areas . | . . . . Known Exits Taken 2 | . 1 1 . Unknown Exits Taken 1 | 1 . . . Scrap Searched . | . . . . Spaces Dug . | . . . . Terrain Destroyed 2 | . . . 2 Melee . | . . . . Projectile . | . . . . AOE 2 | . . . 2 Terrain Rammed . | . . . . Walls Destroyed . | . . . . Machines Disabled . | . . . . Actions | -11 -10 -10 -9 --------- Run | Yrd Mat Min Mat Total 1346 | 53 577 372 344 Wait 215 | . 41 90 84 Move 963 | 39 472 262 190 Hop . | . . . . Pick Up 26 | 8 14 . 4 Fast Attach . | . . . . Attach 17 | 6 2 . 9 Detach . | . . . . Swap 8 | . 5 2 1 Drop 11 | . 8 2 1 Fire 105 | . 35 16 54 Melee . | . . . . Ram 1 | . . . 1 Kick . | . . . . Crush . | . . . . Escape Stasis . | . . . . Rewire . | . . . . Trap . | . . . . Miscellaneous . | . . . . Route ------- -11/Scrapyard -10/Materials (discovered 4 exits: *Mat x2 / *Min x2) -10/Mines (discovered 2 exits: *Mat x2) -9/Materials History --------- Turn | Location | Event 13 | -11/Scrapyard | Discovered new exit (range 15) 59 | -11/Scrapyard | Entered Materials 175 | -10/Materials | Discovered new exit (range 7) 309 | -10/Materials | Build established: Mutant 329 | -10/Materials | Identified exit to Mines 441 | -10/Materials | Discovered new exit (range 15) 694 | -10/Materials | Discovered new exit (range 4) 700 | -10/Materials | Identified exit to Materials 753 | -10/Materials | Discovered exit to Mines (range 15) 796 | -10/Materials | Entered Mines 835 | -10/Mines | Discovered exit to Materials (range 10) 876 | -10/Mines | Discovered exit to Materials (range 4) 974 | -10/Mines | Excavation squad dispatched 974 | -10/Mines | A large section of the Mines collapsed 1013 | -10/Mines | Core integrity fell below 50% 1249 | -10/Mines | Entered Materials 1249 | -9/Materials | Evolved 2 slots: Propulsion x1, Utility x1 1329 | -9/Materials | Build established: Scavenger-Mutant 1705 | -9/Materials | Core integrity fell below 50% 1713 | -9/Materials | Core integrity fell below 20% 1724 | -9/Materials | Destroyed by G-47 Trooper with Particle Gun Last Messages --------------- 01699_ G-34 Mercenary destroyed. 01699_ Electrolysis Chamber disabled. 01700_ Aluminum Leg destroyed. 01706_ EM Pulse Gun destroyed. 01707_ Slammed into G-34 Mercenary. 01707_ Destabilizing: System interference. 01707_ Signal Interpreter temporarily disabled. 01708_ W-16 Scout sends out distress signal. 01709_ Hrd. Light Armor Plating destroyed. 01709_ Ion Engine destroyed. 01710_ Critical hit (Burn: +37). 01716_ U-05 Engineer lays Concrete. 01718_ R-06 Scavenger collects Corrupted Sml. Laser. 01718_ U-05 Engineer lays Concrete. 01719_ Critical hit (Burn: +37). 01719_ U-05 Engineer lays Concrete. 01722_ G-47 Trooper destroyed. 01722_ R-06 Scavenger collects Flight Unit. 01722_ U-05 Engineer lays Concrete. Map ----- +----------------------------------------------------+ | ?????????????????????????????????????????????????? | | ?????????????????????????????????????????????????? | | ?????????????????????????????????????????????????? | | ?????????????????????????????????????????????????? | | ?????????????????????????????????????????????????? | | ?????????????????????????????????????????????????? | | ?????????????????????????????????????????????????? | | ?????????????????????????????????????????????????? | | ?????????????????????????????????????????????????? | | ?????????????????????????????????????????????????? | | ?????????????????????????????????????????????????? | | ???????????????????????????? ????????????????????? | | ??????????????????????????? #????????????????????? | | ???????????????????????????t#????????????????????? | | ??????????????????????????? #????????????????????? | | ??????????????????????????? #????????????????????? | | ?????????????????????????## ##???????????????????? | | ????????????????????????? #???????????????????? | | ????????????????????????? #???????????????????? | | ????????????????????????? +???????????????????? | | ?????????????????????????# #???????????????????? | | ????????????????????????## ##??????????????????? | | ????????????????????????# w ##########?????????? | | ????????????????????????# k ????????? | | ????????????????????????+ ????????? | | ????????????????????????#@ ????????? | | ????????????????????????# ####???????????????? | | ????????????????????????## ##??????????????????? | | ?????????????????????????# #???????????????????? | | ?????????????????????????# #???????????????????? | | ?????????????????????????# #???????????????????? | | ???????????????########### =#???????????????????? | | ???????????????# !!# g[#???????????????????? | | ???????????????# *[=#=%%#???????????????????? | | ?????????????????""" "" %"%uY#???????????????????? | | ?????????????????""" "" %"% #???????????????????? | | ?????????????????""" "" =" #?????##????????????? | | ???????????????# !# ###### #??????##????? | | ???????????????# # ## #????? ?????? | | ???????????????# # ##""" /???? ??????? | | ???????????????########### ##"R #???? ???????? | | ?????????????????????????# ##""" #??? #???????? | | ?????????????????????????# ## #?? #???????? | | ?????????????????????????# ## #? #???????? | | ?????????????????????????# ## % ## ##??????? | | ???????????????????+###### ####+### #??????? | | ?????????????? ^ % #??????? | | ?????????????? +??????? | | ?????????????? % #??????? | | ?????????????? ##########+######/### #??????? | +----------------------------------------------------+ Best States ------------- Heat Dissipation 28 Energy Generation 12 Energy Capacity 265 Matter Stores 300 Matter Capacity 300 Sight Range 16 Terrain Scan Density 10 Armor Coverage 150 Evasion (%) 55 Item Schematics ----------------- None Robot Schematics ------------------ None Fabricated ------------ Nothing Alien Tech Used ----------------- None Achievements -------------- None Challenges ------------ None Game ------ Seed GrapheneShockField Manual? 0 Play Time 00:25:23 Cumulative 53.2 hours Start 2024.04.24 @ 18:21:18 End 2024.04.24 @ 18:45:08 Sessions 1 Manual Loads 0 Difficulty Rogue Special Mode None Game No. 48 Rogue 48 Adventurer 0 Explorer 0 Win Type - Total 0 Types 0/0/0/0/0/0/0/0/0 Lore% 30 Gallery% 38 Achievement% 26 Wizard Run 0 Options --------- Layout 2 ASCII 0 Keyboard 0 Movement Mouse Keybinds 0 Fullscreen 1 Font 48/Smallcaps Map View 50x44 Zoom Use 0% Tactical HUD 1 Map Filters NONE Filters NONE Steam 1 RUN: 45159e10-a3ad-49cb-8198-28f69fc33a53